Cogmind - Beta 9.6 @@@ ROGUE MODE // 2020.07.08 @ 16:26:13 Player: Mr.Manatee Result: Destroyed by G-67 Veteran with Electrolaser Performance ------------- Evolutions (7) 3500 Regions Visited (9) 1800 Robots Destroyed (9) 45 Value Destroyed (212) 212 Prototype IDs (11) 220 Alien Tech Used (0) 0 Bonus (206) 206 TOTAL SCORE: 5983 Bonus ------- Pacifist 200 High Alert Combat Kills 6 Cogmind --------- Core Integrity 0/1300 Matter 157/300 Energy 99/100 System Corruption 0% Temperature Cool (21) Movement Core (50) Location -3/Research Parts ------- > --- POWER (1) -------- (None) > --- PROPULSION (2) --- (None) > --- UTILITY (16) ----- Advanced Visual Processing Unit Advanced Terrain Scan Processor Advanced Targeting Computer > --- WEAPON (2) ------- (None) > --- INVENTORY (4) ---- High-capacity Battery (400) Corruption Screen Dispersion Rifle Improved Remote Datajack Peak State ------------ > --- POWER ------------ Backup Power III > --- PROPULSION ------- Cesium-ion Thruster Field Propulsion Drive > --- UTILITY ---------- Advanced Visual Processing Unit Advanced Terrain Scan Processor Advanced Targeting Computer Improved Core Analyzer System Shield > --- WEAPON ----------- Dispersion Rifle Dispersion Rifle > --- INVENTORY -------- High-capacity Battery Corruption Screen Improved Remote Datajack [Rating: 46] Favorites ----------- Power Light Ion Engine Engine Light Ion Engine Power Core Micro Nuclear Core Propulsion Cesium-ion Thruster Flight Unit Cesium-ion Thruster Utility System Shield Device Structural Scanner Processor Advanced Targeting Computer Hackware System Shield Weapon Dispersion Rifle Energy Gun Dispersion Rifle Energy Cannon Improved EM Pulse Cannon Special Weapon Improved Plasma Cutter Build | -11 -10 -9 -8 -7 -7 -7 -5 -4 -3 ------- Run | Scr Mat Mat Mat Fac Sto Rec Fac Fac Res Slots Evolved 14 | . . 2 2 2 . . 4 2 2 Power . | . . . . . . . . . . Propulsion . | . . . . . . . . . . Utility 14 | . . 2 2 2 . . 4 2 2 Weapon . | . . . . . . . . . . Parts Attached 60 | 3 3 9 5 8 5 8 10 4 5 Power 8 | 1 . 1 . 3 1 1 1 . . Engine 6 | 1 . 1 . 3 1 . . . . Core 2 | . . . . . . 1 1 . . Reactor . | . . . . . . . . . . Propulsion 17 | . . 5 . 1 2 . 6 2 1 Treads . | . . . . . . . . . . Leg . | . . . . . . . . . . Wheel . | . . . . . . . . . . Hover . | . . . . . . . . . . Flight 17 | . . 5 . 1 2 . 6 2 1 Utility 21 | . 1 3 3 3 . 7 3 1 . Device 5 | . . 3 . . . . 2 . . Storage . | . . . . . . . . . . Processor 12 | . 1 . 1 1 . 7 1 1 . Hackware 4 | . . . 2 2 . . . . . Protection . | . . . . . . . . . . Artifact . | . . . . . . . . . . Weapon 14 | 2 2 . 2 1 2 . . 1 4 Energy Gun 11 | 2 2 . 2 1 1 . . 1 2 Energy Cannon 2 | . . . . . 1 . . . 1 Ballistic Gun . | . . . . . . . . . . Ballistic Cannon . | . . . . . . . . . . Launcher . | . . . . . . . . . . Special Weapon 1 | . . . . . . . . . 1 Impact Weapon . | . . . . . . . . . . Slashing Weapon . | . . . . . . . . . . Piercing Weapon . | . . . . . . . . . . Special Melee Weapon . | . . . . . . . . . . Unidentified Prototypes 4 | . . . 1 1 . . . 1 1 Parts Lost 27 | . . 2 2 . 9 1 6 1 6 Power 3 | . . . . . 1 . 1 . 1 Propulsion 9 | . . 1 1 . 3 . 2 . 2 Utility 11 | . . . . . 5 1 3 . 2 Weapon 4 | . . 1 1 . . . . 1 1 Highest Loss Streak 9 | . . 1 1 . 9 1 6 1 3 Average Slot Usage (%) 47 | . 31 68 79 73 61 28 43 31 43 Engine 2 | . . 7 9 6 4 . . 1 3 Flight 6 | . . 14 17 6 4 . 7 6 7 Device 4 | . . 19 22 7 4 . 4 . . Processor 16 | . 3 11 11 21 17 15 21 15 18 Hackware 9 | . . . 12 29 26 12 5 5 3 Energy Gun 4 | . 28 16 5 . 1 . . 3 7 Naked Turns . | . . . . . . . . . . Heaviest Build 14 | 3 3 8 8 4 11 . 9 8 14 Greatest Support 16 | 3 3 8 8 4 10 3 16 11 15 Greatest Overweight (x) 2 | . . . . . 2 . . . . Average Overweight (x) . | . . . . . . . . . . Largest Inventory Capacity 4 | 4 4 4 4 4 4 4 4 4 4 Average Capacity 4 | 4 4 4 4 4 4 4 4 4 4 Most Carried 4 | 4 4 4 3 4 4 4 4 4 4 Average Carried 3 | 2 4 3 3 3 3 3 2 2 3 Final Capacity 4 | 4 4 4 4 4 4 4 4 4 4 Final Carried 4 | 4 4 3 3 4 3 4 1 4 4 Class Distribution -------------------- 41% | Mutant 29% | Commander-Mutant 24% | Hacker-Mutant 4% | Infiltrator-Mutant Dominant Class ---------------- Mutant | -10/Materials Mutant | -9/Materials Hacker-Mutant | -8/Materials Hacker-Mutant | -7/Factory Hacker-Mutant | -7/Storage Commander-Mutant | -7/Recycling Commander-Mutant | -5/Factory Mutant | -4/Factory Mutant | -3/Research Resources | -11 -10 -9 -8 -7 -7 -7 -5 -4 -3 ----------- Run | Scr Mat Mat Mat Fac Sto Rec Fac Fac Res Matter Collected 489 | 230 . 63 . . . 15 65 11 105 Remotely . | . . . . . . . . . . Salvage Created 227 | . . 66 . . 30 15 . 11 105 Parts 17 | . . 8 . . 3 3 . . 3 Haulers Intercepted . | . . . . . . . . . . Recyclers Shooed . | . . . . . . . . . . Parts Field Recycled . | . . . . . . . . . . Retrieved Matter . | . . . . . . . . . . Parts Self-Destructed . | . . . . . . . . . . Prevented . | . . . . . . . . . . Kills | -11 -10 -9 -8 -7 -7 -7 -5 -4 -3 ------- Run | Scr Mat Mat Mat Fac Sto Rec Fac Fac Res Combat Hostiles Destroyed 8 | . . 4 . . 1 1 . 1 1 Melee 2 | . . . . . 1 1 . . . Guns 4 | . . 2 . . . . . 1 1 AOE 2 | . . 2 . . . . . . . Classes Destroyed 4 | . . 2 . . . 1 . . 1 Builder 1 | . . 1 . . . . . . . Drone 1 | . . . . . . 1 . . . Swarmer 6 | . . 4 . . 1 . . 1 . Sentry 1 | . . . . . . . . . 1 Best Kill Streak 5 | . . 5 . . 1 1 . 1 1 Combat Bots Only 4 | . . 4 . . 1 1 . 1 1 Max Kills in Single Turn 4 | . . 4 . . 1 1 . 1 1 Gunslinging . | . . . . . . . . . . Exploded 2 | . . 2 . . . . . . . Melee 1 | . . . . . 1 1 . . . Uniques/NPCs Destroyed . | . . . . . . . . . . Combat | -11 -10 -9 -8 -7 -7 -7 -5 -4 -3 -------- Run | Scr Mat Mat Mat Fac Sto Rec Fac Fac Res Damage Taken 3177 | . 13 178 125 34 907 5 295 43 1577 Core 2246 | . 13 57 27 20 644 . 141 43 1301 Absorbed by Shields 74 | . . . . . 74 . . . . Core Remaining (%) 80 | 100 94 85 95 . . 5 85 96 . Volleys Fired 35 | . . 3 . . 22 . . 3 7 Largest 2 | . . 2 . . 1 . . 1 2 Hottest 108 | . . 80 . . 69 . . 88 108 Shots Fired 43 | . . 6 . . 22 . . 3 12 Gun 37 | . . 6 . . 21 . . 3 7 Cannon 1 | . . . . . 1 . . . . Launcher . | . . . . . . . . . . Special 5 | . . . . . . . . . 5 Kinetic . | . . . . . . . . . . Thermal 39 | . . 3 . . 21 . . 3 12 Explosive . | . . . . . . . . . . Electromagnetic 4 | . . 3 . . 1 . . . . Robot Hit Streak 6 | . . 3 . . . . . 2 6 Robot Miss Streak 2 | . . 2 . . . . . 1 1 Penetration Max . | . . . . . . . . . . Secondary Targets . | . . . . . . . . . . Shots Hit Robots 15 | . . 3 . . . . . 2 10 Core Hits 18 | . . 6 . . 4 1 . 1 6 Critical Hits 2 | . . . . . . . . . 2 Critical Kills . | . . . . . . . . . . Critical Parts Destroyed 1 | . . . . . . . . . 1 Melee Attacks . | . . . . . . . . . . Impact . | . . . . . . . . . . Slashing . | . . . . . . . . . . Piercing . | . . . . . . . . . . Sneak Attacks . | . . . . . . . . . . Combat Hostiles . | . . . . . . . . . . Follow-up Attacks . | . . . . . . . . . . Damage Inflicted 444 | . . 164 . . 25 10 . 52 193 Guns 226 | . . 43 . . . . . 52 131 Cannons . | . . . . . . . . . . Explosions 121 | . . 121 . . . . . . . Melee . | . . . . . . . . . . Ramming 35 | . . . . . 25 10 . . . Kinetic . | . . . . . . . . . . Thermal 388 | . . 143 . . . . . 52 193 Explosive . | . . . . . . . . . . Electromagnetic 21 | . . 21 . . . . . . . Impact . | . . . . . . . . . . Slashing . | . . . . . . . . . . Piercing . | . . . . . . . . . . Highest Corruption 3 | . . . . 1 1 3 . . . Average Corruption 1 | . . . . 1 1 1 . . . Corruption Purged . | . . . . . . . . . . Effects 5 | . . . . . 1 4 . . . Message Errors 2 | . . . . . 1 1 . . . Matter Fused 1 | . . . . . . 1 . . . Heat Flow Errors 1 | . . . . . . 1 . . . Data Loss (minor) 1 | . . . . . . 1 . . . Overload Shots . | . . . . . . . . . . Overflow Damage . | . . . . . . . . . . Projectiles . | . . . . . . . . . . Explosions . | . . . . . . . . . . Melee . | . . . . . . . . . . Knockbacks . | . . . . . . . . . . Impact . | . . . . . . . . . . Kinetic . | . . . . . . . . . . Secondary . | . . . . . . . . . . Self-Inflicted Damage 54 | . . 37 . . 12 5 . . . Shots 1 | . . 1 . . . . . . . Rammed 9 | . . . . . 8 1 . . . Targets Rammed 9 | . . . . . 8 1 . . . Kicked . | . . . . . . . . . . Crushed . | . . . . . . . . . . Highest Temperature 149 | . . 10 . . 12 149 . 14 12 Average Temperature 25 | . . 8 . . 9 81 . 6 7 Received Heat Transfer 420 | . 9 42 27 . 144 . 33 . 165 Siege Activations . | . . . . . . . . . . Robots Corrupted . | . . . . . . . . . . Combat Hostiles . | . . . . . . . . . . Parts Fried . | . . . . . . . . . . Impact Corruptions . | . . . . . . . . . . Robots Melted . | . . . . . . . . . . Combat Hostiles . | . . . . . . . . . . Parts Melted 4 | . . . . . . . . . 4 Heat Transferred 657 | . . 250 . . . . . 74 333 Parts Sabotaged . | . . . . . . . . . . Parts Stolen . | . . . . . . . . . . Parts Stripped . | . . . . . . . . . . Power Chain Reactions 1 | . . 1 . . . . . . . Missiles Intercepted . | . . . . . . . . . . Alert | -11 -10 -9 -8 -7 -7 -7 -5 -4 -3 ------- Run | Scr Mat Mat Mat Fac Sto Rec Fac Fac Res Peak Influence 1182 | . 45 210 178 122 95 165 1182 583 366 Average Influence 339 | . 30 127 144 105 69 77 935 503 306 Maximum Alert Level 4 | . . 1 . . . . 4 2 1 Low Security (%) 55 | 100 100 98 100 100 100 100 . . 21 Level 1 15 | . . 1 . . . . . . 78 Level 2 9 | . . . . . . . . 100 . Level 3 17 | . . . . . . . 88 . . Level 4 2 | . . . . . . . 11 . . Level 5 . | . . . . . . . . . . High Security . | . . . . . . . . . . Max Security . | . . . . . . . . . . Squads Dispatched 9 | . . . 2 3 . 1 2 1 . Investigation 3 | . . . . 2 . . 1 . . Extermination 2 | . . . . 1 . . . 1 . Reinforcement 4 | . . . 2 . . 1 1 . . Assault . | . . . . . . . . . . Garrison . | . . . . . . . . . . Intercept . | . . . . . . . . . . Construction Impeded 1 | . . . . . . 1 . . . Haulers Reinforced . | . . . . . . . . . . Stealth | -11 -10 -9 -8 -7 -7 -7 -5 -4 -3 --------- Run | Scr Mat Mat Mat Fac Sto Rec Fac Fac Res Distress Signals 5 | . 1 . 1 . 1 2 . . . Communications Jammed . | . . . . . . . . . . Distress Signals . | . . . . . . . . . . Times Spotted 72 | . 4 15 7 3 9 2 11 6 15 Peak Tracking Total 12 | . 3 7 4 2 8 1 3 4 12 Tactical Retreats 8 | . . 1 1 1 1 . 3 . 1 Traps | -11 -10 -9 -8 -7 -7 -7 -5 -4 -3 ------- Run | Scr Mat Mat Mat Fac Sto Rec Fac Fac Res Traps Triggered 5 | . 1 . . . 2 . 1 1 . Indirectly . | . . . . . . . . . . Trap Hack Attempts . | . . . . . . . . . . Triggered . | . . . . . . . . . . Disarmed . | . . . . . . . . . . Reprogrammed . | . . . . . . . . . . Reused . | . . . . . . . . . . Traps Extracted . | . . . . . . . . . . Installed . | . . . . . . . . . . Triggered . | . . . . . . . . . . Machines | -11 -10 -9 -8 -7 -7 -7 -5 -4 -3 ---------- Run | Scr Mat Mat Mat Fac Sto Rec Fac Fac Res Machines Disabled 4 | . . . . . 1 1 . 1 1 Max in Single Turn 1 | . . . . . 1 . . 1 1 Garrison Access 2 | . . . . . 1 . 1 . . Machines Sabotaged . | . . . . . . . . . . Garrisons Compromised . | . . . . . . . . . . Overloaded Fab Kills . | . . . . . . . . . . Fab Network Shutdowns . | . . . . . . . . . . Hacking | -11 -10 -9 -8 -7 -7 -7 -5 -4 -3 --------- Run | Scr Mat Mat Mat Fac Sto Rec Fac Fac Res Machines Accessed 39 | . . 4 4 7 5 4 8 6 1 Terminals 22 | . . 1 3 3 4 3 5 3 . Fabricators 3 | . . . . 1 . . 1 1 . Repair Stations 4 | . . 2 . 1 . . . 1 . Recycling Units 2 | . . . . 1 . 1 . . . Scanalyzers 3 | . . 1 1 . . . 1 . . Garrison Access 5 | . . . . 1 1 . 1 1 1 Total Hacks 151 | . . 10 31 26 17 14 33 18 2 Successful 81 | . . 8 17 12 12 7 16 9 . Failed 70 | . . 2 14 14 5 7 17 9 2 Catastrophic 10 | . . . . 3 1 1 3 2 . Database Lockouts . | . . . . . . . . . . Manual 81 | . . . 26 5 14 6 18 10 2 Terminals 97 | . . 1 29 12 16 11 18 10 . Fabricators 15 | . . . . 5 . . 8 2 . Repair Stations 13 | . . 4 . 5 . . . 4 . Recycling Units 6 | . . . . 3 . 3 . . . Scanalyzers 12 | . . 5 2 . . . 5 . . Garrison Access 8 | . . . . 1 1 . 2 2 2 Terminal Hacks 33 | . . . 12 5 8 3 4 1 . Record 4 | . . . . 2 . . 2 . . Part Schematic 7 | . . . 2 . 3 . 1 1 . Robot Analysis 6 | . . . 4 . . 2 . . . Prototype ID Bank 3 | . . . 2 1 . . . . . Open Door 2 | . . . . . 2 . . . . Branch Access Points 1 | . . . 1 . . . . . . Terminal Index 3 | . . . 1 . 1 1 . . . Recall Investigation 3 | . . . . 2 . . 1 . . Recall Reinforcements 1 | . . . 1 . . . . . . Registered Components 2 | . . . 1 . 1 . . . . Registered Prototypes 1 | . . . . . 1 . . . . Fabricator Hacks 6 | . . . . 1 . . 4 1 . Network Status 1 | . . . . . . . 1 . . Load Schematic 2 | . . . . 1 . . 1 . . Build 3 | . . . . . . . 2 1 . Repair Station Hacks 11 | . . 4 . 4 . . . 3 . Scan Component 5 | . . 2 . 2 . . . 1 . Repair 5 | . . 2 . 2 . . . 1 . Refit 1 | . . . . . . . . 1 . Recycling Unit Hacks 3 | . . . . . . 3 . . . Process 1 | . . . . . . 1 . . . Retrieve Matter 2 | . . . . . . 2 . . . Scanalyzer 10 | . . 4 2 . . . 4 . . Insert Component 5 | . . 2 1 . . . 2 . . Analyze 5 | . . 2 1 . . . 2 . . Garrison Access Hacks 1 | . . . . . 1 . . . . Seal Access 1 | . . . . . 1 . . . . Unauthorized Hacks 17 | . . . 3 2 3 1 4 4 . Terminals 13 | . . . 3 2 3 1 . 4 . Track 4 | . . . 1 1 1 . . 1 . Assimilate 1 | . . . . . . . . 1 . Botnet 8 | . . . 2 1 2 1 . 2 . Fabricators 3 | . . . . . . . 3 . . Report 1 | . . . . . . . 1 . . Prioritize 1 | . . . . . . . 1 . . Siphon 1 | . . . . . . . 1 . . Repair Stations . | . . . . . . . . . . Recycling Units . | . . . . . . . . . . Scanalyzers . | . . . . . . . . . . Garrison Access 1 | . . . . . . . 1 . . Jam 1 | . . . . . . . 1 . . Data Cores Recovered . | . . . . . . . . . . Used . | . . . . . . . . . . Hacking Detections 36 | . . 3 4 7 3 4 8 6 1 Full Trace Events 2 | . . . . 2 . . . . . Feedback Events 1 | . . . . 1 . . . . . Corruption 1 | . . . . 1 . . . . . Feedback Blocked . | . . . . . . . . . . Robot Schematics Acquired . | . . . . . . . . . . Robots Built . | . . . . . . . . . . Matter . | . . . . . . . . . . Time . | . . . . . . . . . . Total Robot Build Rating . | . . . . . . . . . . Part Schematics Acquired 12 | . . 2 3 . 3 . 3 1 . Parts Built 6 | . . . . . . . 4 2 . Matter 452 | . . . . . . . 218 234 . Time 111 | . . . . . . . 72 39 . Total Part Build Rating 26 | . . . . . . . 12 14 . Parts Repaired 5 | . . 2 . 2 . . . 1 . Time 94 | . . 52 . 26 . . . 16 . Parts Recycled . | . . . . . . . . . . Recycled Matter 26 | . . . . . . 26 . . . Retrieved Matter 26 | . . . . . . 26 . . . Retrieved Components . | . . . . . . . . . . Parts Scanalyzed 5 | . . 2 1 . . . 2 . . Part Schematics Acquired 5 | . . 2 1 . . . 2 . . Parts Damaged 2 | . . . . . . . 2 . . Bothacking | -11 -10 -9 -8 -7 -7 -7 -5 -4 -3 ------------ Run | Scr Mat Mat Mat Fac Sto Rec Fac Fac Res Used RIF Installer . | . . . . . . . . . . Robots Hacked . | . . . . . . . . . . Non-combat . | . . . . . . . . . . Combat . | . . . . . . . . . . Robot Hacks Applied . | . . . . . . . . . . Relay Couplers Released . | . . . . . . . . . . Robots Rewired 18 | . . . . . . 18 . . . Allies Hacked . | . . . . . . . . . . Hacks Repelled . | . . . . . . . . . . Allies | -11 -10 -9 -8 -7 -7 -7 -5 -4 -3 -------- Run | Scr Mat Mat Mat Fac Sto Rec Fac Fac Res Total Allies 19 | . . . . . . 18 . 1 . Largest Group 14 | . . . . . . 14 7 1 . Highest-Rated Group 353 | . . . . . . 353 214 26 . Highest-Rated Ally 37 | . . . . . . 37 37 26 . Total Orders 12 | . . . . . . . 12 . . STAY 4 | . . . . . . . 4 . . FOLLOW 2 | . . . . . . . 2 . . AID 6 | . . . . . . . 6 . . Ally Attacks 66 | . . . . . . 62 4 . . Total Damage 1248 | . . . . . . 1129 119 . . Kills 13 | . . . . . . 13 . . . Allies Corrupted . | . . . . . . . . . . Allies Melted . | . . . . . . . . . . Intel | -11 -10 -9 -8 -7 -7 -7 -5 -4 -3 ------- Run | Scr Mat Mat Mat Fac Sto Rec Fac Fac Res Robot Analysis Total 6 | . . . 4 . . 2 . . . Derelict Logs Recovered . | . . . . . . . . . . Drone Launches . | . . . . . . . . . . Drone Recoveries . | . . . . . . . . . . Exploration | -11 -10 -9 -8 -7 -7 -7 -5 -4 -3 ------------- Run | Scr Mat Mat Mat Fac Sto Rec Fac Fac Res Turns Passed 2850 | 34 130 228 146 295 203 424 567 261 562 Spaces Moved 3741 | 49 243 375 363 476 238 235 895 352 515 Core 892 | 49 243 105 . . 122 235 67 . 71 Treads . | . . . . . . . . . . Legs . | . . . . . . . . . . Wheels . | . . . . . . . . . . Hover . | . . . . . . . . . . Flight 2849 | . . 270 363 476 116 . 828 352 444 Fastest Speed 37 | 50 50 37 37 40 37 50 37 37 37 Average Speed 41 | 50 50 40 37 40 49 50 39 39 39 Slowest Speed 200 | 50 50 50 40 40 200 50 50 40 50 Overloaded Moves . | . . . . . . . . . . Propulsion Burnouts . | . . . . . . . . . . Robots Hopped 17 | . . . 7 . 2 . 6 . 2 Cave-ins Triggered 1 | . . . . . . . . 1 . Exploration Rate (%) 24 | 4 38 25 34 11 36 57 16 11 14 Regions Visited 9 Branch Regions 2 Pre-discovered Areas . | . . . . . . . . . . Known Exits Taken . | . . . . . . . . . . Unknown Exits Taken 9 | 1 1 1 1 1 1 1 1 1 . Scrap Searched . | . . . . . . . . . . Spaces Dug . | . . . . . . . . . . Terrain Destroyed 2 | . . 2 . . . . . . . Melee . | . . . . . . . . . . Projectile . | . . . . . . . . . . AOE 2 | . . 2 . . . . . . . Actions | -11 -10 -9 -8 -7 -7 -7 -5 -4 -3 --------- Run | Scr Mat Mat Mat Fac Sto Rec Fac Fac Res Total 4959 | 58 249 440 365 578 298 538 1107 469 857 Wait 842 | . 2 53 1 88 . 101 183 87 327 Move 3698 | 48 242 374 348 475 233 234 882 351 511 Hop 17 | . . . 7 . 2 . 6 . 2 Pick Up 19 | 6 1 1 . 2 1 . 4 4 . Fast Attach 42 | . 3 6 5 7 3 7 4 4 3 Attach 13 | 3 . 2 . . 2 . 4 1 1 Detach 7 | 1 . . . 1 1 3 . . 1 Swap 6 | . . 1 . 1 . 1 2 . 1 Drop 25 | . 1 . 4 4 3 1 7 1 4 Fire 35 | . . 3 . . 22 . . 3 7 Melee . | . . . . . . . . . . Ram 9 | . . . . . 8 1 . . . Kick . | . . . . . . . . . . Crush . | . . . . . . . . . . Escape Stasis 56 | . . . . . 23 . 15 18 . Rewire 190 | . . . . . . 190 . . . Trap . | . . . . . . . . . . Miscellaneous . | . . . . . . . . . . Route ------- -11/Scrapyard -10/Materials (discovered 2 exits: *Mat / [*Min]) -9/Materials -8/Materials -7/Factory -7/Storage -7/Recycling -5/Factory -4/Factory -3/Research History --------- Turn | Location | Event 8 | -11/Scrapyard | Discovered new exit (range 15) 35 | -11/Scrapyard | Entered Materials 62 | -10/Materials | Discovered new exit (range 9) 155 | -10/Materials | Discovered new exit (range 8) 165 | -10/Materials | Entered another Materials area 165 | -9/Materials | Evolved 2 slots: Utility x2 309 | -9/Materials | Repaired Flight Unit 320 | -9/Materials | Discovered new exit (range 14) 372 | -9/Materials | Repaired Flight Unit 393 | -9/Materials | Entered another Materials area 393 | -8/Materials | Evolved 2 slots: Utility x2 506 | -8/Materials | Discovered new exit (range 10) 539 | -8/Materials | Entered Factory 539 | -7/Factory | Evolved 2 slots: Utility x2 639 | -7/Factory | Discovered new exit (range 9) 701 | -7/Factory | Repaired Lgt. Ion Engine 716 | -7/Factory | Repaired Flight Unit 758 | -7/Factory | Build established: Hacker-Mutant 834 | -7/Factory | Entered Storage 987 | -7/Storage | Core integrity fell below 50% 1021 | -7/Storage | Core integrity fell below 20% 1035 | -7/Storage | Used back door to open Recycling access 1035 | -7/Storage | Discovered new exit (range 5) 1037 | -7/Storage | Entered Recycling 1055 | -7/Recycling | Lost 9 parts (1p3n5u) 1122 | -7/Recycling | Spotter reported a threat 1122 | -7/Recycling | Spotter reported a threat 1133 | -7/Recycling | Spotter reported a threat 1133 | -7/Recycling | Spotter reported a threat 1133 | -7/Recycling | Spotter reported a threat 1151 | -7/Recycling | Spotter reported a threat 1186 | -7/Recycling | Spotter reported a threat 1204 | -7/Recycling | Spotter reported a threat 1210 | -7/Recycling | Spotter reported a threat 1216 | -7/Recycling | Spotter reported a threat 1330 | -7/Recycling | Spotter reported a threat 1345 | -7/Recycling | Spotter reported a threat 1350 | -7/Recycling | Discovered new exit (range 17) 1357 | -7/Recycling | Spotter reported a threat 1406 | -7/Recycling | Build established: Commander-Mutant 1461 | -7/Recycling | Entered Factory 1461 | -5/Factory | Accompanied by 7 allies 1461 | -5/Factory | Evolved 4 slots: Utility x4 1522 | -5/Factory | Fabricated Cesium-ion Thruster (x2) 1576 | -5/Factory | Fabricated Cesium-ion Thruster (x2) 1887 | -5/Factory | Lost 6 parts (1p2n3u) 2011 | -5/Factory | Discovered new exit (range 13) 2028 | -5/Factory | Entered another Factory area 2028 | -4/Factory | Evolved 2 slots: Utility x2 2105 | -4/Factory | Fabricated Dispersion Rifle (x2) 2216 | -4/Factory | Crushed by falling debris 2238 | -4/Factory | Repaired VTOL Module 2259 | -4/Factory | Build established: Mutant 2273 | -4/Factory | Discovered new exit (range 9) 2289 | -4/Factory | Entered Research 2289 | -3/Research | Evolved 2 slots: Utility x2 2785 | -3/Research | Spotted B-86 Titan 2816 | -3/Research | Lost 3 parts (1p1n1w) 2829 | -3/Research | Core integrity fell below 50% 2842 | -3/Research | Core integrity fell below 20% 2850 | -3/Research | Lost 3 parts (1n2u) 2851 | -3/Research | Destroyed by G-67 Veteran with Electrolaser Last Messages --------------- 02775_ Imp. Plasma Cutter destroyed. 02777_ Med. Treads melted. 02777_ Adv. Heat Sink melted. 02777_ Particle Reactor melted. 02777_ Adv. Heat Sink melted. 02777_ Y-72 Warden destroyed. 02779_ Dropped Dispersion Rifle. 02780_ Acquired 105 matter. 02785_ Backup Power III destroyed. 02798_ Penetrated by Slug. 02798_ Slug penetrates Wall. 02816_ Cesium-ion Thruster destroyed. 02819_ System Shield destroyed. 02819_ Imp. Core Analyzer destroyed. 02819_ Knocked back. 02819_ Slug penetrates Y-72 Warden. 02821_ Penetrated by Slug. 02822_ Knocked back. 02844_ U-05 Engineer lays Concrete. 02845_ U-05 Engineer destroyed. Map ----- +----------------------------------------------------+ | ??????????????????????????????????????????????? | | ??????????????????????????????????????????????? | | ??????????????????????????????????????????????? | | ??????????????????????????????????????????????? | | ??????????????????????????????????????????????? | | ??????????????????????????????????????????????? | | ?????????????????????? ??????????????????????? | | ?????????????????????? ??????????????????????? | | ?????????????????????? ??????????????????????? | | ?????????????#???????# ??????????????????????? | | ??????????#### ####### ##????????????????????? | | ???????? """T""" #????????????????????? | | ???????? #????????????????????? | | ??????? #????????????????????? | | ???????] ! #########????????????? | | ??????? # ????????????? | | ???????? # !?????????????? | | ?????????? # ?????????????? | | ???????????# # ??????????????? | | ???????????# # //??????????????? | | ???????????# # = /???????????????# | | ???????????# # /???????????????# | | ???????????# A#? ????????????????# | | ???????????+ #? ????????????????# | | ???????????# ###+################## | | ???????????# @ g =^ s + | | ????????????######### g g %= ss # | | ????????????????????# s A s + | | ????????????????????# ^ """"""" # | | ????????????????????# s! """"""" # | | ????????????????????# s """"""" # | | ????????????????????# # | | ????????????????????# # | | ????????????????????# "" "" # | | ????????????????????# ""T"" # | | ????????????????????# """ # | | ????????????????????###################### # | | ????????????????????????? ?# # | | ??????????????????????????? # # | | ??????????????????????????????""""" # # | | ??????????????????????????????""""" " # | | ??????????????????????????????""""" # # | | ??????????????????????????? # # | | ????????????????????????? ] ?# # | | ?????????????????????????############+##?# # | | ??????????????????????????????????### #### # | | ??????????????????????????????????# | | ??????????????????????????????????# | | ??????????????????????????????????# | | ??????????????????????????????????# | +----------------------------------------------------+ Best States ------------- Heat Dissipation 46 Energy Generation 17 Energy Capacity 150 Matter Stores 300 Matter Capacity 300 Sight Range 20 Terrain Scan Density 210 ECM Strength 2 Power Amplification 20 Evasion (%) 62 Targeting Accuracy 13 Core Analysis 8 Offensive Hacking 20 Defensive Hacking 20 Item Schematics ----------------- Flight Unit | -9/Materials | Scanalyzed Lgt. Ion Engine | -9/Materials | Scanalyzed Hcp. Battery | -8/Materials | Scanalyzed VTOL Module | -8/Materials | Hacked Disposable Heat Sink | -8/Materials | Hacked Hacking Suite | -7/Storage | Hacked System Shield | -7/Storage | Hacked Cesium-ion Thruster | -7/Storage | Hacked Nuclear Pulse Thruster | -5/Factory | Scanalyzed Coolant Injector | -5/Factory | Scanalyzed Nuclear Pulse Array | -5/Factory | Hacked Imp. System Shield | -4/Factory | Hacked Robot Schematics ------------------ None Fabricated ------------ Cesium-ion Thruster | x2 | -5/Factory Cesium-ion Thruster | x2 | -5/Factory Dispersion Rifle | x2 | -4/Factory | Preloaded Alien Tech Used ----------------- None Achievements -------------- None Challenges ------------ None Game ------ Seed BackupFusionSuite Manual? 0 Play Time 00:54:04 Cumulative 41.7 hours Start 2020.07.08 @ 15:34:20 End 2020.07.08 @ 16:26:13 Sessions 1 Manual Loads 0 Difficulty Rogue Special Mode None Game No. 52 Rogue 52 Adventurer 0 Explorer 0 Win Type - Total 0 Types 0/0/0/0/0/0/0 Lore% 33 Gallery% 42 Achievement% 37 Wizard Run 0 Options --------- ASCII 0 Keyboard 0 Movement Numpad Keybinds 0 Fullscreen 2 Font 16/Terminus Map View 76x50 Tactical HUD 1 Map Filters NONE Filters NONE Steam 1 RUN: ab09fd94-bdc5-44e3-be3e-6dbf3026791b